fUST/lending_fUST_20260419
["ID","MTS","AMOUNT","RATE_DAILY","PERIOD"]
[420784660,1776529839625,-910.15425803,0.00011079,2]
[420784661,1776529839636,-910.15425803,0.00011079,2]
[420784662,1776529839646,-11030.36955148,0.0001108,2]
[420784663,1776529839656,-293.5945543,0.00011094,2]
[420784664,1776529839666,-376.33451158,0.000111,2]
[420784665,1776529839676,-151.0,0.000111,2]
[420784666,1776529839688,-151.0,0.000111,2]
[420784667,1776529839699,-151.0,0.000111,2]
[420784668,1776529839709,-151.0,0.000111,2]
[420784669,1776529839720,-151.0,0.000111,2]
[420784670,1776529839732,-151.0,0.000111,2]
[420784671,1776529839743,-151.0,0.000111,2]
[420784672,1776529839755,-500.0,0.00011173,2]
[420784673,1776529839767,-500.0,0.00011173,2]
[420784674,1776529839777,-500.0,0.00011173,2]
[420784675,1776529839788,-158.7958269,0.00011173,2]
[420784676,1776529839800,-500.0,0.00011173,2]
[420784677,1776529839812,-500.0,0.00011173,2]
[420784678,1776529839823,-500.0,0.00011173,2]
[420784679,1776529839834,-500.0,0.00011173,2]
[420784680,1776529839846,-500.0,0.00011173,2]
[420784681,1776529839857,-500.0,0.00011173,2]
[420784682,1776529839869,-500.0,0.00011173,2]
[420784683,1776529839879,-500.0,0.00011173,2]
[420784684,1776529839889,-500.0,0.00011173,2]
[420784685,1776529839900,-500.0,0.00011173,2]
[420784686,1776529839911,-500.0,0.00011173,2]
[420784687,1776529839921,-500.0,0.00011173,2]
[420784688,1776529839934,-882309.95799735,0.00011177,2]
[420784689,1776529839948,-4869.65549784,0.00011177,2]
[420784690,1776529839964,-41666.40038653,0.00011177,2]
[420784996,1776529843647,-989.7927556,0.00011079,2]
[420784998,1776529843658,-989.7927556,0.00011079,2]
[420785000,1776529843669,-989.7927556,0.00011079,2]
[420785002,1776529843680,-989.7927556,0.00011079,2]
[420785004,1776529843690,-989.7927556,0.00011079,2]
[420785006,1776529843701,-989.7927556,0.00011079,2]
[420785008,1776529843713,-551.8822956,0.00011079,2]
[420785012,1776529843726,-437.91046,0.00011079,2]
[420785015,1776529843736,-989.7927556,0.00011079,2]
[420785019,1776529843748,-2055.09696613,0.00011177,2]
[420785146,1776529846938,-3784.0,0.00011076,2]
[420785147,1776529846997,-709.05352591,0.00011076,2]
[420785148,1776529855074,500.0,0.00024657,120]
[420785149,1776529855348,500.0,0.00024657,120]
[420785150,1776529855582,500.0,0.00024657,120]
[420785151,1776529855826,500.0,0.00024657,120]
[420785152,1776529856035,500.0,0.00024657,120]
[420785153,1776529856263,500.0,0.00024657,120]
[420785154,1776529856502,500.0,0.00024657,120]
[420785155,1776529857110,500.0,0.00024657,120]
[420785156,1776529857378,500.0,0.00024657,120]
[420785157,1776529857631,500.0,0.00024657,120]
[420785158,1776529857886,500.0,0.00024657,120]
[420785159,1776529858110,500.0,0.00024657,120]
[420785160,1776529858345,500.0,0.00024657,120]
[420785161,1776529858591,500.0,0.00024657,120]
[420785162,1776529858939,500.0,0.00024657,120]
[420785164,1776529859044,500.0,0.00024657,120]
[420785167,1776529859279,479.3,0.00024657,120]
[420785507,1776529904698,500.0,0.00024657,120]
[420785510,1776529904923,500.0,0.00024657,120]
[420785512,1776529905174,500.0,0.00024657,120]
[420785514,1776529905412,500.0,0.00024657,120]
[420785517,1776529905651,619.21,0.00024657,120]
[420785772,1776529941337,500.0,0.00024657,120]
[420785775,1776529941594,500.0,0.00024657,120]
[420785777,1776529941825,500.0,0.00024657,120]
[420785780,1776529942061,500.0,0.00024657,120]
[420785781,1776529942291,500.0,0.00024657,120]
[420785784,1776529942632,500.0,0.00024657,120]
[420785786,1776529942863,500.0,0.00024657,120]
[420785789,1776529943094,500.0,0.00024657,120]
[420785792,1776529943374,500.0,0.00024657,120]
[420785794,1776529943604,472.91582484,0.00024657,120]
[420785821,1776529947276,500.0,0.00023627,120]
[420785834,1776529949027,613.7,0.00024657,120]
[420785837,1776529949328,613.7,0.00024657,120]
[420785840,1776529949563,613.7,0.00024657,120]
[420785843,1776529949803,613.7,0.00024657,120]
[420785845,1776529950041,613.7,0.00024657,120]
[420785848,1776529950302,613.7,0.00024657,120]
[420785851,1776529950534,613.7,0.00024657,120]
[420785854,1776529950768,613.7,0.00024657,120]
[420785857,1776529951029,613.7,0.00024657,120]
[420785859,1776529951266,613.7,0.00024657,120]
[420785862,1776529951500,613.7,0.00024657,120]
[420785865,1776529951808,613.7,0.00024657,120]
[420785868,1776529952054,613.7,0.00024657,120]
[420785871,1776529952285,613.7,0.00024657,120]
[420785873,1776529952516,613.7,0.00024657,120]
[420785876,1776529952779,613.7,0.00024657,120]
[420785879,1776529953005,613.7,0.00024657,120]
[420785882,1776529953281,613.7,0.00024657,120]
[420785885,1776529953513,613.7,0.00024657,120]
[420785888,1776529953780,613.7,0.00024657,120]
[420785890,1776529954015,613.7,0.00024657,120]
[420785893,1776529954250,613.7,0.00024657,120]
[420785896,1776529954488,613.7,0.00024657,120]
[420785898,1776529954717,613.82,0.00024657,120]
[420786416,1776530030448,500.0,0.00024657,120]
[420786418,1776530030669,344.12,0.00024657,120]
[420787844,1776530239750,526.37,0.00024657,120]
[420787900,1776530248326,500.0,0.00023609,120]
[420789827,1776530549614,500.0,0.00023609,120]
[420790251,1776530613796,-1000.0,9.352e-05,2]
[420790259,1776530614861,-1000.0,9.352e-05,2]
[420790262,1776530615185,-1000.0,9.352e-05,2]
[420790265,1776530615539,-1000.0,9.352e-05,2]
[420790269,1776530615938,-1000.0,9.352e-05,2]
[420790273,1776530616391,-226.0,9.352e-05,2]
[420790274,1776530616411,-774.0,9.446e-05,2]
[420790277,1776530616824,-1000.0,9.446e-05,2]
[420790281,1776530617277,-1000.0,9.446e-05,2]
[420790285,1776530617693,-1000.0,9.446e-05,2]
[420790288,1776530617993,-322.31764971,9.446e-05,2]
[420790289,1776530618015,-677.68235029,9.541e-05,2]
[420790293,1776530618418,-200.59416166,9.882e-05,2]
[420790294,1776530618441,-172.44,0.000105,2]
[420790295,1776530618463,-441.0,0.00010546,2]
[420790296,1776530618486,-184.0,0.00010546,2]
[420790297,1776530618509,-1.96583834,0.00010656,2]
[420790301,1776530618883,-260.01357466,0.00010656,2]
[420790302,1776530618904,-230.323,0.00010657,2]
[420790303,1776530618929,-509.66342534,0.000108,2]
[420790306,1776530619241,-986.63163804,0.000108,2]
[420790307,1776530619266,-13.36836196,0.000108,2]
[420790310,1776530619585,-901.79969864,9.352e-05,2]
[420790311,1776530619612,-98.20030136,0.000108,2]
[420790312,1776530619955,-1000.0,0.000108,2]
[420790316,1776530620384,-1000.0,0.000108,2]
[420790320,1776530620850,-1000.0,0.000108,2]
[420790324,1776530621227,-295.10449581,0.000108,2]
[420790325,1776530621251,-704.89550419,0.000108,2]
[420790328,1776530621550,-1000.0,0.000108,2]
[420790331,1776530621973,-1000.0,0.000108,2]
[420790335,1776530622305,-955.24960803,0.000108,2]
[420790336,1776530622333,-44.75039197,0.000108,2]
[420790339,1776530622618,-200.59416166,9.494e-05,2]
[420790340,1776530622643,-799.40583834,0.000108,2]
[420790343,1776530623047,-1000.0,0.000108,2]
[420790347,1776530623367,-1000.0,0.000108,2]
[420790350,1776530623775,-909.48545507,0.000108,2]
[420790351,1776530623797,-90.51454493,0.00010873,2]
[420790354,1776530624086,-409.48545507,0.00010873,2]
[420790355,1776530624109,-500.0,0.00010873,2]
[420790357,1776530624130,-90.51454493,0.00010873,2]
[420790360,1776530624474,-409.48545507,0.00010873,2]
[420790361,1776530624496,-500.0,0.00010873,2]
[420790362,1776530624517,-90.51454493,0.00010873,2]
[420790366,1776530624917,-409.48545507,0.00010873,2]
[420790367,1776530624939,-500.0,0.00010873,2]
[420790368,1776530624960,-90.51454493,0.00010873,2]
[420790372,1776530625378,-414.72339504,0.00010873,2]
[420790373,1776530625399,-500.0,0.00010873,2]
[420790374,1776530625420,-85.27660496,0.00010873,2]
[420790378,1776530625837,-426.53768627,0.00010873,2]
[420790379,1776530625861,-343.28075085,0.00010874,2]
[420790380,1776530625885,-230.18156288,0.00010874,2]
[420790383,1776530626162,-5.93763691,0.00010874,2]
[420790384,1776530626185,-326.26416366,0.00010874,2]
[420790385,1776530626211,-500.0,0.00010874,2]
[420790386,1776530626233,-167.79819943,0.00010874,2]
[420790389,1776530626490,-332.20180057,0.00010874,2]
[420790390,1776530626513,-397.05033307,0.00010874,2]
[420790391,1776530626535,-270.74786636,0.00010874,2]
[420790394,1776530626892,-229.25213364,0.00010874,2]
[420790396,1776530626917,-500.0,0.00010874,2]
[420790397,1776530626940,-270.74786636,0.00010874,2]
[420790400,1776530627227,-229.25213364,0.00010874,2]
[420790401,1776530627249,-500.0,0.00010874,2]
[420790402,1776530627271,-270.74786636,0.00010874,2]
[420790405,1776530627594,-229.25213364,0.00010874,2]
[420790406,1776530627620,-500.0,0.00010874,2]
[420790407,1776530627642,-270.74786636,0.00010874,2]
[420790410,1776530627935,-229.25213364,0.00010874,2]
[420790411,1776530627958,-595.84912621,0.00010874,2]
[420790413,1776530627981,-174.89874015,0.00010874,2]
[420790416,1776530628314,-325.10125985,0.00010874,2]
[420790417,1776530628337,-500.0,0.00010874,2]
[420790418,1776530628360,-174.89874015,0.00010874,2]
[420790421,1776530628633,-325.10125985,0.00010874,2]
[420790422,1776530628657,-500.0,0.00010874,2]
[420790423,1776530628683,-174.89874015,0.00010874,2]
[420790426,1776530628993,-325.10125985,0.00010874,2]
[420790427,1776530629018,-500.0,0.00010874,2]
[420790429,1776530629043,-174.89874015,0.00010874,2]
[420790432,1776530629335,-325.10125985,0.00010874,2]
[420790433,1776530629359,-500.0,0.00010874,2]
[420790434,1776530629382,-174.89874015,0.00010874,2]
[420790472,1776530634935,-1000.0,0.00010765,2]
[420790476,1776530635383,-1000.0,0.00010765,2]
[420790479,1776530635697,-1000.0,0.00010765,2]
[420790480,1776530636019,-1000.0,0.00010765,2]
[420790483,1776530636453,-1000.0,0.00010765,2]
[420790486,1776530636770,-325.10125985,0.00010874,2]
[420790487,1776530636794,-500.0,0.00010874,2]
[420790488,1776530636819,-174.89874015,0.00010874,2]
[420790491,1776530637123,-325.10125985,0.00010874,2]
[420790493,1776530637147,-388.98918704,0.00010874,2]
[420790494,1776530637170,-285.90955311,0.00010874,2]
[420790498,1776530637597,-214.09044689,0.00010874,2]
[420790499,1776530637623,-785.90955311,0.00010875,2]
[420790503,1776530638076,-1000.0,0.00010875,2]
[420790506,1776530638405,-1000.0,0.00010875,2]
[420790511,1776530638869,-1000.0,0.00010875,2]
[420790515,1776530639323,-1000.0,0.00010875,2]
[420790520,1776530639916,-1000.0,0.00010875,2]
[420790524,1776530640334,-1000.0,0.00010875,2]
[420790527,1776530640652,-1000.0,0.00010875,2]
[420790531,1776530641085,-1000.0,0.00010875,2]
[420790546,1776530643074,-1000.0,0.00010875,2]
[420790550,1776530643505,-1000.0,0.00010875,2]
[420790562,1776530645012,-1000.0,0.00010875,2]
[420790569,1776530645948,-1000.0,0.00010875,2]
[420790576,1776530646959,-1000.0,0.00010875,2]
[420790582,1776530648102,-1000.0,0.00010875,2]
[420790634,1776530656559,-673.0,0.00010875,2]
[420791901,1776530849263,500.0,0.00023609,120]
[420791955,1776530857662,500.0,0.00024657,120]
[420791957,1776530857903,500.0,0.00024657,120]
[420791959,1776530858118,500.0,0.00024657,120]
[420791962,1776530858341,500.0,0.00024657,120]
[420791964,1776530858568,500.0,0.00024657,120]
[420791965,1776530858801,500.0,0.00024657,120]
[420791967,1776530859041,500.0,0.00024657,120]
[420791969,1776530859257,500.0,0.00024657,120]
[420791972,1776530859479,500.0,0.00024657,120]
[420791974,1776530859698,500.0,0.00024657,120]
[420791976,1776530859915,500.0,0.00024657,120]
[420791979,1776530860208,500.0,0.00024657,120]
[420791981,1776530860389,500.0,0.00024657,120]
[420791984,1776530860621,500.0,0.00024657,120]
[420791987,1776530860887,500.0,0.00024657,120]
[420791991,1776530861452,500.0,0.00024657,120]
[420791994,1776530861718,500.0,0.00024657,120]
[420791996,1776530861943,500.0,0.00024657,120]
[420791999,1776530862161,500.0,0.00024657,120]
[420792002,1776530862490,500.0,0.00024657,120]
[420792004,1776530862631,500.0,0.00024657,120]
[420792006,1776530862858,500.0,0.00024657,120]
[420792009,1776530863084,500.0,0.00024657,120]
[420792011,1776530863304,500.0,0.00024657,120]
[420793079,1776531031772,-1036.69568593,9.9e-05,2]
[420793080,1776531031826,-3963.30431407,9.9e-05,2]
[420793081,1776531031838,-192.57039519,9.95e-05,2]
[420793082,1776531031847,-13665.58993156,0.0001,2]
[420793083,1776531031860,-833.04085386,0.0001,2]
[420793084,1776531031880,-16106.68790508,0.0001,2]
[420793085,1776531031889,-216.192,0.00010546,2]
[420793086,1776531031898,-153.586,0.00010546,2]
[420793087,1776531031907,-166.049,0.00010546,2]
[420793088,1776531031917,-240.2965256,0.00010774,2]
[420793090,1776531031926,-621.76101402,0.00010774,2]
[420793091,1776531031936,-500.0,0.00010774,2]
[420793092,1776531031946,-191.00187219,0.00010774,2]
[420793093,1776531031955,-154.33213189,0.00010774,2]
[420793094,1776531031964,-168.20756792,0.00010774,2]
[420793095,1776531031973,-121843.0341687,0.00010775,2]
[420793143,1776531038200,-10209.98579081,0.00010775,2]
[420793144,1776531038211,-988.23170697,0.00010775,2]
[420793145,1776531038252,-2055.82691265,0.00010775,2]
[420793146,1776531038261,-9927.33259635,0.00010859,2]
[420793147,1776531038270,-575.28888299,0.00010873,2]
[420793148,1776531038279,-590.8229903,0.00010873,2]
[420793150,1776531038289,-500.0,0.00010873,2]
[420793151,1776531038298,-500.0,0.00010873,2]
[420793152,1776531038308,-5697.49916063,0.00010876,2]
[420793153,1776531038319,-1852.028498,0.00010876,2]
[420793154,1776531038330,-320367.13511631,0.00010876,2]
[420793171,1776531040296,-353.435,0.00010876,2]
[420793172,1776531040355,-74942.73959596,0.00010876,2]
[420793179,1776531041343,-0.31173249,0.00010876,2]
[420793180,1776531041355,-2357.72519592,0.00010876,2]
[420793221,1776531046445,-5000.0,0.00010767,2]
[420793222,1776531046454,-1663.02210269,0.00010876,2]
[420793223,1776531046465,-98310.07546443,0.00010876,2]
[420793224,1776531046498,-3832.25599419,0.00010876,2]
[420793231,1776531047449,-10000.0,0.00010876,2]
[420793513,1776531092213,500.0,0.00024657,120]
[420793574,1776531101230,500.0,0.00024657,120]
[420793586,1776531102761,500.0,0.00024657,120]
[420793599,1776531104580,500.0,0.00024657,120]
[420793668,1776531115220,504.45563128,0.00024657,120]
[420793676,1776531116281,500.0,0.00024657,120]
[420793698,1776531119417,500.0,0.00024657,120]
[420793699,1776531119511,424.37,0.00024657,120]
[420793703,1776531119971,500.0,0.00024657,120]
[420793736,1776531125147,500.0,0.00024657,120]
[420793739,1776531125556,500.0,0.00024657,120]
[420793741,1776531125665,594.5,0.00024657,120]
[420793752,1776531127270,500.0,0.00024657,120]
[420793760,1776531128324,500.0,0.00024657,120]
[420793782,1776531131653,500.0,0.00024657,120]
[420793785,1776531131903,500.0,0.00024657,120]
[420793787,1776531132116,205.63,0.00024657,120]
[420793789,1776531132294,500.0,0.00024657,120]
[420793799,1776531133518,500.0,0.00024657,120]
[420793828,1776531137968,500.0,0.00024657,120]
[420793832,1776531138644,500.0,0.00024657,120]
[420793861,1776531143245,500.0,0.00024657,120]
[420793873,1776531145133,500.0,0.00024657,120]
[420793896,1776531148665,500.0,0.00023608,120]
[420793919,1776531152093,500.0,0.00024657,120]
[420793924,1776531152703,500.0,0.00024657,120]
[420793952,1776531157282,566.67858217,0.00024657,120]
[420793965,1776531159072,500.0,0.00024657,120]
[420793978,1776531160940,574.49,0.00024657,120]
[420793988,1776531162393,500.0,0.00024657,120]
[420793999,1776531163900,500.0,0.00024657,120]
[420794001,1776531164136,419.76,0.00024657,120]
[420794002,1776531164205,500.0,0.00024657,120]
[420794004,1776531164274,500.0,0.00024657,120]
[420794006,1776531164375,500.0,0.00024657,120]
[420794007,1776531164445,500.0,0.00024657,120]
[420794009,1776531164606,500.0,0.00024657,120]
[420794011,1776531164695,500.0,0.00024657,120]
[420794012,1776531164825,500.0,0.00024657,120]
[420794014,1776531164924,500.0,0.00024657,120]
[420794016,1776531165087,500.0,0.00024657,120]
[420794018,1776531165160,500.0,0.00024657,120]
[420794020,1776531165358,479.1,0.00024657,120]
[420794021,1776531165427,500.0,0.00024657,120]
[420794023,1776531165602,500.0,0.00024657,120]
[420794026,1776531165815,500.0,0.00024657,120]
[420794027,1776531165889,500.0,0.00024657,120]
[420794029,1776531166071,500.0,0.00024657,120]
[420794031,1776531166142,500.0,0.00024657,120]
[420794033,1776531166295,461.06,0.00024657,120]
[420794034,1776531166367,500.0,0.00024657,120]
[420794036,1776531166536,500.0,0.00024657,120]
[420794039,1776531166767,500.0,0.00024657,120]
[420794041,1776531167001,500.0,0.00024657,120]
[420794043,1776531167117,500.0,0.00024657,120]
[420794044,1776531167223,500.0,0.00024657,120]
[420794047,1776531167453,500.0,0.00024657,120]
[420794049,1776531167691,500.0,0.00024657,120]
[420794052,1776531167924,500.0,0.00024657,120]
[420794054,1776531168150,500.0,0.00024657,120]
[420794057,1776531168401,500.0,0.00024657,120]
[420794059,1776531168603,500.0,0.00024657,120]
[420794061,1776531168676,500.0,0.00024657,120]
[420794063,1776531168869,523.45,0.00024657,120]
[420794072,1776531170147,633.22,0.00024657,120]
[420794086,1776531172598,500.0,0.00024657,120]
[420794101,1776531174857,500.0,0.00024657,120]
[420794104,1776531175088,328.4,0.00024657,120]
[420794106,1776531175238,500.0,0.00024657,120]
[420794108,1776531175509,389.07,0.00024657,120]
[420794118,1776531176822,500.0,0.00024657,120]
[420794123,1776531177447,500.0,0.00024657,120]
[420794127,1776531177986,500.0,0.00024657,120]
[420794136,1776531179191,500.0,0.00024657,120]
[420794139,1776531179430,500.0,0.00024657,120]
[420794141,1776531179689,500.0,0.00024657,120]
[420794143,1776531179764,218.24,0.00024657,120]
[420794158,1776531181935,500.0,0.00024657,120]
[420794160,1776531182137,500.0,0.00024657,120]
[420794163,1776531182401,626.65,0.00024657,120]
[420794183,1776531185413,529.1568234,0.00024657,120]
[420794190,1776531186237,500.0,0.00024657,120]
[420794195,1776531186697,500.0,0.00024657,120]
[420794197,1776531186804,500.0,0.00024657,120]
[420794198,1776531186898,500.0,0.00024657,120]
[420794200,1776531186970,500.0,0.00024657,120]
[420794201,1776531187055,264.32,0.00024657,120]
[420794203,1776531187147,500.0,0.00024657,120]
[420794205,1776531187375,500.0,0.00024657,120]
[420794207,1776531187606,500.0,0.00024657,120]
[420794209,1776531187809,500.0,0.00024657,120]
[420794211,1776531187884,500.0,0.00024657,120]
[420794213,1776531188029,500.0,0.00024657,120]
[420794214,1776531188101,238.38,0.00024657,120]
[420794216,1776531188249,500.0,0.00024657,120]
[420794219,1776531188486,539.53,0.00024657,120]
[420794236,1776531191489,500.0,0.00024657,120]
[420794240,1776531191945,500.0,0.00024657,120]
[420794242,1776531192046,500.0,0.00024657,120]
[420794244,1776531192275,500.0,0.00024657,120]
[420794247,1776531192503,500.0,0.00024657,120]
[420794249,1776531192741,500.0,0.00024657,120]
[420794252,1776531193026,500.0,0.00024657,120]
[420794254,1776531193255,500.0,0.00024657,120]
[420794257,1776531193519,500.0,0.00024657,120]
[420794260,1776531193766,500.0,0.00024657,120]
[420794262,1776531194010,500.0,0.00024657,120]
[420794265,1776531194236,500.0,0.00024657,120]
[420794267,1776531194466,500.0,0.00024657,120]
[420794270,1776531194701,500.0,0.00024657,120]
[420794272,1776531194940,500.0,0.00024657,120]
[420794275,1776531195171,500.0,0.00024657,120]
[420794277,1776531195363,500.0,0.00024657,120]
[420794278,1776531195447,500.0,0.00024657,120]
[420794280,1776531195639,500.0,0.00024657,120]
[420794282,1776531195712,500.0,0.00024657,120]
[420794284,1776531195868,500.0,0.00024657,120]
[420794285,1776531195944,500.0,0.00024657,120]
[420794287,1776531196084,184.33,0.00024657,120]
[420794289,1776531196152,500.0,0.00024657,120]
[420794291,1776531196329,594.52,0.00024657,120]
[420794292,1776531196399,641.47,0.00024657,120]
[420794296,1776531196918,500.0,0.00024657,120]
[420794299,1776531197170,232.18696612,0.00024657,120]
[420794306,1776531198124,500.0,0.00024657,120]
[420794326,1776531201169,500.0,0.00024657,120]
[420794328,1776531201410,500.0,0.00024657,120]
[420794331,1776531201808,500.0,0.00024657,120]
[420794333,1776531201897,500.0,0.00024657,120]
[420794335,1776531202107,500.0,0.00024657,120]
[420794338,1776531202365,500.0,0.00024657,120]
[420794340,1776531202598,500.0,0.00024657,120]
[420794343,1776531202847,500.0,0.00024657,120]
[420794347,1776531203423,500.0,0.00024657,120]
[420794350,1776531203678,500.0,0.00024657,120]
[420794352,1776531203842,645.566917,0.00024657,120]
[420794353,1776531203925,500.0,0.00024657,120]
[420794355,1776531204125,500.0,0.00024657,120]
[420794358,1776531204376,500.0,0.00024657,120]
[420794359,1776531204448,500.0,0.00024657,120]
[420794361,1776531204602,500.0,0.00024657,120]
[420794362,1776531204672,500.0,0.00024657,120]
[420794365,1776531204862,500.0,0.00024657,120]
[420794367,1776531205094,500.0,0.00024657,120]
[420794369,1776531205317,211.6,0.00024657,120]
[420794375,1776531206557,500.0,0.00024657,120]
[420794386,1776531208189,500.0,0.00024657,120]
[420794389,1776531208476,647.58,0.00024657,120]
[420794393,1776531209027,500.0,0.00024657,120]
[420794431,1776531215091,500.0,0.00024657,120]
[420794433,1776531215324,335.3,0.00024657,120]
[420794442,1776531216557,500.0,0.00024657,120]
[420794444,1776531216782,500.0,0.00024657,120]
[420794447,1776531217008,500.0,0.00024657,120]
[420794449,1776531217239,500.0,0.00024657,120]
[420794452,1776531217475,500.0,0.00024657,120]
[420794453,1776531217549,636.71,0.00024657,120]
[420794455,1776531217705,500.0,0.00024657,120]
[420794457,1776531217933,368.12,0.00024657,120]
[420794469,1776531219758,500.0,0.00024657,120]
[420794471,1776531219978,500.0,0.00024657,120]
[420794474,1776531220205,184.33,0.00024657,120]
[420794481,1776531221161,268.61184875,0.00024657,120]
[420794485,1776531221732,500.0,0.00024657,120]
[420794488,1776531221979,500.0,0.00024657,120]
[420794491,1776531222378,500.0,0.00024657,120]
[420794493,1776531222463,500.0,0.00024657,120]
[420794496,1776531222926,500.0,0.00024657,120]
[420794498,1776531223007,500.0,0.00024657,120]
[420794500,1776531223243,500.0,0.00024657,120]
[420794503,1776531223478,500.0,0.00024657,120]
[420794504,1776531223725,500.0,0.00024657,120]
[420794505,1776531223977,500.0,0.00024657,120]
[420794508,1776531224223,500.0,0.00024657,120]
[420794510,1776531224461,500.0,0.00024657,120]
[420794512,1776531224704,500.0,0.00024657,120]
[420794515,1776531224980,500.0,0.00024657,120]
[420794517,1776531225060,500.0,0.00024657,120]
[420794518,1776531225228,500.0,0.00024657,120]
[420794522,1776531225642,500.0,0.00024657,120]
[420794524,1776531225868,500.0,0.00024657,120]
[420794527,1776531226101,500.0,0.00024657,120]
[420794529,1776531226320,500.0,0.00024657,120]
[420794532,1776531226562,500.0,0.00024657,120]
[420794534,1776531226801,386.06,0.00024657,120]
[420794535,1776531226872,505.64650693,0.00024657,120]
[420794555,1776531229863,500.0,0.00024657,120]
[420794558,1776531230086,437.66,0.00024657,120]
[420794567,1776531231264,500.0,0.00024657,120]
[420794568,1776531231332,603.56,0.00024657,120]
[420794570,1776531231493,500.0,0.00024657,120]
[420794573,1776531231728,500.0,0.00024657,120]
[420794575,1776531231946,500.0,0.00024657,120]
[420794577,1776531232175,500.0,0.00024657,120]
[420794581,1776531232569,245.76,0.00024657,120]
[420794586,1776531233223,500.0,0.00024657,120]
[420794588,1776531233447,500.0,0.00024657,120]
[420794591,1776531233663,290.72,0.00024657,120]
[420794611,1776531236610,500.0,0.00024657,120]
[420794614,1776531236861,500.0,0.00024657,120]
[420794617,1776531237234,500.0,0.00024657,120]
[420794619,1776531237452,500.0,0.00024657,120]
[420794622,1776531237676,500.0,0.00024657,120]
[420794624,1776531237899,500.0,0.00024657,120]
[420794626,1776531237980,500.0,0.00024657,120]
[420794628,1776531238144,500.0,0.00024657,120]
[420794629,1776531238211,500.0,0.00024657,120]
[420794632,1776531238394,300.1,0.00024657,120]
[420794633,1776531238467,500.0,0.00024657,120]
[420794635,1776531238670,500.0,0.00024657,120]
[420794639,1776531239083,500.0,0.00024657,120]
[420794642,1776531239303,500.0,0.00024657,120]
[420794643,1776531239371,500.0,0.00024657,120]
[420794645,1776531239530,500.0,0.00024657,120]
[420794646,1776531239601,500.0,0.00024657,120]
[420794648,1776531239757,500.0,0.00024657,120]
[420794650,1776531239827,500.0,0.00024657,120]
[420794652,1776531239933,500.0,0.00024657,120]
[420794653,1776531240002,604.83,0.00024657,120]
[420794654,1776531240075,500.0,0.00024657,120]
[420794656,1776531240172,500.0,0.00024657,120]